Cogmind - Beta 13 @@@ ROGUE MODE // 2024.03.24 @ 18:58:07 Player: Julie Result: Self-destructed Performance ------------- Evolutions (2) 1000 Regions Visited (5) 1000 Robots Destroyed (33) 165 Value Destroyed (595) 595 Prototype IDs (3) 60 Alien Tech Used (0) 0 Bonus (30) 30 TOTAL SCORE: 2850 Bonus ------- High Alert Combat Kills 30 Cogmind --------- Core Integrity 317/550 Matter 40/300 Energy 100/100 System Corruption 0% Temperature Cool (0) Movement Core (50) Location -8/Materials Parts ------- > --- POWER (1) -------- (None) > --- PROPULSION (4) --- Improved Treads Armored Treads > --- UTILITY (4) ------ Utility Shielding > --- WEAPON (2) ------- (None) > --- INVENTORY (5) ---- Improved Ion Engine Medium Laser Light Assault Rifle Peak State ------------ > --- POWER ------------ Ion Engine > --- PROPULSION ------- Aluminum Leg Aluminum Leg > --- UTILITY ---------- Small Storage Unit Sensor Drone Bay > --- WEAPON ----------- Medium Laser Hammer > --- INVENTORY -------- Ion Engine Light Treads Small Laser Assault Rifle [Rating: 14] Favorites ----------- Power Improved Ion Engine Engine Improved Ion Engine Propulsion Flight Unit Treads Armored Treads Leg Aluminum Leg Flight Unit Flight Unit Utility Small Storage Unit Device Sensor Drone Bay Storage Small Storage Unit Protection Utility Shielding Weapon Mini Grenade Launcher Energy Gun Medium Laser Ballistic Gun Assault Rifle Launcher Mini Grenade Launcher Impact Weapon Hammer Build | -11 -10 -10 -9 -9 -8 ------- Run | Yrd Mat Min Mat Sto Mat Slots Evolved 4 | . . . 2 . 2 Power . | . . . . . . Propulsion 2 | . . . 1 . 1 Utility 2 | . . . 1 . 1 Weapon . | . . . . . . Parts Attached 39 | 7 1 7 15 3 6 Power 5 | 1 . 1 1 2 . Engine 5 | 1 . 1 1 2 . Core . | . . . . . . Reactor . | . . . . . . Propulsion 15 | 2 . 2 7 1 3 Treads 2 | . . . . . 2 Leg 2 | 2 . . . . . Wheel . | . . . . . . Hover . | . . . . . . Flight 11 | . . 2 7 1 1 Utility 3 | 1 . 1 1 . . Device 1 | . . 1 . . . Storage 1 | 1 . . . . . Processor . | . . . . . . Hackware . | . . . . . . Protection 1 | . . . 1 . . Artifact . | . . . . . . Weapon 16 | 3 1 3 6 . 3 Energy Gun 6 | 2 . 1 1 . 2 Energy Cannon . | . . . . . . Ballistic Gun 4 | 1 . 1 2 . . Ballistic Cannon . | . . . . . . Launcher 4 | . . 1 2 . 1 Special Weapon . | . . . . . . Impact Weapon 2 | . 1 . 1 . . Slashing Weapon . | . . . . . . Piercing Weapon . | . . . . . . Special Melee Weapon . | . . . . . . Unidentified Prototypes 3 | . . 1 . 1 1 Parts Lost 16 | . . . 8 5 3 Power 2 | . . . 1 1 . Propulsion 9 | . . . 5 3 1 Utility . | . . . . . . Weapon 5 | . . . 2 1 2 Highest Loss Streak 5 | . . . 5 5 1 To Critical Strikes . | . . . . . . Average Slot Usage (%) 59 | . 85 85 53 55 21 Engine 10 | . 14 14 10 10 . Leg 6 | . 28 22 . . . Flight 11 | . . 5 16 19 . Storage 10 | . 14 14 11 4 . Protection 4 | . . . 4 11 9 Energy Gun 3 | . 14 8 . . 1 Ballistic Gun 2 | . 12 7 . . . Launcher 6 | . . 5 7 10 2 Impact Weapon 1 | . 1 3 1 . . Naked Turns . | . . . . . . Heaviest Build 28 | 14 14 28 14 14 5 Greatest Support 43 | 20 20 20 12 8 43 Greatest Overweight (x) 3 | 2 . 1 3 1 1 Average Overweight (x) . | . . . . . . Largest Inventory Capacity 8 | 8 8 8 8 8 5 Average Capacity 7 | 7 8 8 8 6 5 Most Carried 8 | 4 4 8 8 6 5 Average Carried 5 | 2 3 6 5 5 3 Final Capacity 8 | 8 8 8 8 5 5 Final Carried 8 | 3 4 8 6 5 3 Class Distribution -------------------- 100% | Mutant Dominant Class ---------------- Mutant | -10/Materials Mutant | -10/Mines Mutant | -9/Materials Mutant | -9/Storage Mutant | -8/Materials Resources | -11 -10 -10 -9 -9 -8 ----------- Run | Yrd Mat Min Mat Sto Mat Matter Collected 528 | 151 20 76 237 38 6 Remotely . | . . . . . . Salvage Created 343 | . 20 76 171 53 23 Parts 44 | . 1 7 23 8 5 Haulers Intercepted . | . . . . . . Recyclers Shooed . | . . . . . . Parts Field Recycled . | . . . . . . Retrieved Matter . | . . . . . . Parts Self-Destructed . | . . . . . . Prevented . | . . . . . . Kills | -11 -10 -10 -9 -9 -8 ------- Run | Yrd Mat Min Mat Sto Mat Combat Hostiles Destroyed 29 | . . 7 12 5 5 Guns 7 | . . 4 2 . 1 AOE 21 | . . 3 9 5 4 Classes Destroyed 6 | . 1 1 4 . . Worker 2 | . . . 2 . . Builder 1 | . . . 1 . . Watcher 1 | . 1 . . . . Swarmer 22 | . . 7 6 4 5 Grunt 3 | . . . 2 1 . Sentry 4 | . . . 4 . . Best Kill Streak 11 | . 1 3 11 5 4 Combat Bots Only 8 | . . 3 8 5 4 Max Kills in Single Turn 3 | . 1 3 3 3 2 Gunslinging . | . . . . . . Exploded 3 | . . 3 2 3 2 Melee . | . . . . . . Uniques/NPCs Destroyed . | . . . . . . Combat | -11 -10 -10 -9 -9 -8 -------- Run | Yrd Mat Min Mat Sto Mat Hostile Shots Fired 250 | . . 32 86 39 93 Missed 96 | . . 11 33 21 31 Damage Taken 1841 | . . 166 658 285 732 Core 659 | . . 27 265 134 233 Absorbed by Shields . | . . . . . . Redirected to Shielding 1 | . . . 1 . . Regen/Repaired (Parts) 15 | . . . 15 . . Core Remaining (%) 63 | 100 . 89 . . . Volleys Fired 46 | . . 17 22 2 5 Largest 2 | . . 2 1 1 1 Hottest 70 | . . 70 30 30 50 Shots Fired 50 | . . 21 22 2 5 Gun 29 | . . 20 6 . 3 Cannon . | . . . . . . Launcher 21 | . . 1 16 2 2 Special . | . . . . . . Kinetic 22 | . . 16 6 . . Thermal 6 | . . 4 . . 2 Explosive 21 | . . 1 16 2 2 Electromagnetic 1 | . . . . . 1 Robot Hit Streak 8 | . . 2 8 . 1 Robot Miss Streak 6 | . . 4 4 3 6 Penetration Max . | . . . . . . Secondary Targets 1 | . . 1 . . . Max Gunslinging Chain 1 | . . 1 . . . Shots Hit Robots 26 | . 1 10 14 . 1 Core Hits 44 | . . 7 24 8 5 Critical Kills . | . . . . . . Critical Parts Destroyed 1 | . . . 1 . . Critical Strikes 3 | . . . 3 . . Smash 3 | . . . 3 . . Melee Attacks 6 | . 1 . 5 . . Impact 6 | . 1 . 5 . . Slashing . | . . . . . . Piercing . | . . . . . . Sneak Attacks . | . . . . . . Combat Hostiles . | . . . . . . Follow-up Attacks . | . . . . . . Damage Inflicted 1594 | . 21 233 871 195 274 Guns 173 | . . 130 34 . 9 Cannons . | . . . . . . Explosions 1299 | . . 103 736 195 265 Melee 122 | . 21 . 101 . . Ramming . | . . . . . . Kinetic 152 | . . 118 34 . . Thermal 12 | . . 12 . . . Explosive 1299 | . . 103 736 195 265 Electromagnetic 9 | . . . . . 9 Impact 122 | . 21 . 101 . . Slashing . | . . . . . . Piercing . | . . . . . . Highest Corruption . | . . . . . . Average Corruption . | . . . . . . Corruption Purged . | . . . . . . Corruption Blocked . | . . . . . . Overload Shots . | . . . . . . Overflow Damage 69 | . 1 . 28 . 40 Projectiles . | . . . . . . Explosions 42 | . . . 2 . 40 Melee 27 | . 1 . 26 . . Knockbacks 1 | . 1 . . . . Impact 1 | . 1 . . . . Kinetic . | . . . . . . Secondary . | . . . . . . Self-Inflicted Damage 120 | . . . 61 . 59 Shots 3 | . . . 2 . 1 Rammed . | . . . . . . Targets Rammed . | . . . . . . Kicked . | . . . . . . Crushed . | . . . . . . Highest Temperature 36 | . . 36 4 7 19 Average Temperature 14 | . . 19 3 3 16 Received Heat Transfer 363 | . . . 171 84 108 Siege Activations . | . . . . . . Robots Corrupted . | . . . . . . Combat Hostiles . | . . . . . . Parts Fried 1 | . 1 . . . . Impact Corruptions 3 | . 1 . 2 . . Robots Melted . | . . . . . . Combat Hostiles . | . . . . . . Parts Melted 1 | . . 1 . . . Heat Transferred 37 | . . 37 . . . Parts Sabotaged . | . . . . . . Parts Stolen . | . . . . . . Parts Stripped . | . . . . . . Power Chain Reactions . | . . . . . . Alert | -11 -10 -10 -9 -9 -8 ------- Run | Yrd Mat Min Mat Sto Mat Peak Influence 497 | . 7 248 497 287 388 Initial 105 | . . 2 96 102 105 Average 186 | . 1 87 263 141 224 Maximum Alert Level 2 | . . 1 2 1 1 Low Security (%) 52 | 100 100 85 29 78 27 Level 1 44 | . . 14 64 21 72 Level 2 3 | . . . 6 . . Level 3 . | . . . . . . Level 4 . | . . . . . . Level 5 . | . . . . . . High Security . | . . . . . . Max Security . | . . . . . . Squads Dispatched 5 | . . . 2 . 3 Investigation 2 | . . . 1 . 1 Extermination . | . . . . . . Reinforcement 3 | . . . 1 . 2 Assault . | . . . . . . Garrison . | . . . . . . Intercept . | . . . . . . Searches Triggered . | . . . . . . Construction Impeded . | . . . . . . Haulers Reinforced . | . . . . . . Active Scanning Responses . | . . . . . . Cargo Convoy Interrupts . | . . . . . . Stealth | -11 -10 -10 -9 -9 -8 --------- Run | Yrd Mat Min Mat Sto Mat Distress Signals 1 | . . . . 1 . Communications Jammed . | . . . . . . Distress Signals . | . . . . . . Times Spotted 66 | . 1 12 19 13 21 Peak Tracking Total 12 | . 1 6 6 10 12 Tactical Retreats 6 | . . 1 2 2 1 Traps | -11 -10 -10 -9 -9 -8 ------- Run | Yrd Mat Min Mat Sto Mat Traps Triggered 2 | . . . . 1 1 Indirectly . | . . . . . . Trap Hack Attempts . | . . . . . . Triggered . | . . . . . . Disarmed . | . . . . . . Reprogrammed . | . . . . . . Reused . | . . . . . . Traps Extracted . | . . . . . . Installed . | . . . . . . Triggered . | . . . . . . Machines | -11 -10 -10 -9 -9 -8 ---------- Run | Yrd Mat Min Mat Sto Mat Machines Disabled 7 | . . . 5 . 2 Max in Single Turn 2 | . . . 1 . 2 Machines Repaired . | . . . . . . Machines Dismantled . | . . . . . . Machines Sabotaged . | . . . . . . Overloaded Fab Kills . | . . . . . . Hacking | -11 -10 -10 -9 -9 -8 --------- Run | Yrd Mat Min Mat Sto Mat Machines Accessed 6 | . . 1 2 3 . Terminals 3 | . . . . 3 . Fabricators . | . . . . . . Repair Stations 1 | . . . 1 . . Recycling Units 1 | . . . 1 . . Scanalyzers . | . . . . . . Garrison Access . | . . . . . . Total Hacks 11 | . . 1 6 4 . Successful 4 | . . 1 2 1 . Failed 7 | . . . 4 3 . Catastrophic 1 | . . . . 1 . Database Lockouts . | . . . . . . Manual . | . . . . . . Terminals 4 | . . . . 4 . Fabricators . | . . . . . . Repair Stations 4 | . . . 4 . . Recycling Units 2 | . . . 2 . . Scanalyzers . | . . . . . . Garrison Access . | . . . . . . Terminal Hacks 2 | . . 1 . 1 . Open Door 2 | . . 1 . 1 . Fabricator Hacks . | . . . . . . Repair Station Hacks 2 | . . . 2 . . Scan Component 1 | . . . 1 . . Repair 1 | . . . 1 . . Recycling Unit Hacks . | . . . . . . Scanalyzer . | . . . . . . Garrison Access Hacks . | . . . . . . Unauthorized Hacks . | . . . . . . Terminals . | . . . . . . Fabricators . | . . . . . . Repair Stations . | . . . . . . Recycling Units . | . . . . . . Scanalyzers . | . . . . . . Garrison Access . | . . . . . . Data Cores Recovered . | . . . . . . Used . | . . . . . . Hacking Detections 3 | . . . 2 1 . Full Trace Events 2 | . . . 1 1 . Feedback Events . | . . . . . . Feedback Blocked . | . . . . . . Robot Schematics Acquired . | . . . . . . Robots Built . | . . . . . . Authchips . | . . . . . . Time . | . . . . . . Total Robot Build Rating . | . . . . . . Part Schematics Acquired . | . . . . . . Parts Built . | . . . . . . Authchips . | . . . . . . Time . | . . . . . . Total Part Build Rating . | . . . . . . Parts Repaired 1 | . . . 1 . . Time 32 | . . . 32 . . Parts Recycled . | . . . . . . Recycled Matter . | . . . . . . Retrieved Matter . | . . . . . . Retrieved Components . | . . . . . . Parts Scanalyzed . | . . . . . . Part Schematics Acquired . | . . . . . . Parts Damaged . | . . . . . . Bothacking | -11 -10 -10 -9 -9 -8 ------------ Run | Yrd Mat Min Mat Sto Mat Used RIF Installer . | . . . . . . Robots Hacked . | . . . . . . Non-combat . | . . . . . . Combat . | . . . . . . Robot Hacks Applied . | . . . . . . Relay Couplers Released . | . . . . . . Fabnet Peak Effective % . | . . . . . . Robots Rewired . | . . . . . . Allies Hacked . | . . . . . . Hacks Repelled . | . . . . . . Allies | -11 -10 -10 -9 -9 -8 -------- Run | Yrd Mat Min Mat Sto Mat Total Allies . | . . . . . . Largest Group . | . . . . . . Highest-Rated Group . | . . . . . . Highest-Rated Ally . | . . . . . . Total Orders . | . . . . . . Ally Attacks . | . . . . . . Total Damage . | . . . . . . Kills . | . . . . . . Allies Corrupted . | . . . . . . Allies Melted . | . . . . . . Intel | -11 -10 -10 -9 -9 -8 ------- Run | Yrd Mat Min Mat Sto Mat Robot Analysis Total . | . . . . . . Derelict Logs Recovered 1 | . . 1 . . . Drone Launches 20 | . . 20 . . . Drone Recoveries . | . . . . . . Exploration | -11 -10 -10 -9 -9 -8 ------------- Run | Yrd Mat Min Mat Sto Mat Turns Passed 1685 | 60 85 388 841 137 174 Spaces Moved 1541 | 49 67 230 759 206 230 Core 269 | 24 . . 10 12 223 Treads 7 | . . . . . 7 Legs 260 | 25 67 168 . . . Wheels . | . . . . . . Hover . | . . . . . . Flight 1005 | . . 62 749 194 . Fastest Speed 32 | 50 120 117 32 37 50 Average Speed 91 | 93 120 128 93 60 66 Slowest Speed 280 | 150 120 190 280 120 165 Overloaded Moves . | . . . . . . Propulsion Burnouts . | . . . . . . Robots Hopped 6 | . . . 3 3 . Cave-ins Triggered . | . . . . . . Exploration Rate (%) 35 | 4 17 65 44 48 33 Regions Visited 5 Branch Regions 2 Pre-discovered Areas . | . . . . . . Known Exits Taken 1 | . . 1 . . . Unknown Exits Taken 4 | 1 1 . 1 1 . Scrap Searched . | . . . . . . Spaces Dug . | . . . . . . Terrain Destroyed 80 | . . 4 47 14 15 Melee . | . . . . . . Projectile . | . . . . . . AOE 80 | . . 4 47 14 15 Terrain Rammed . | . . . . . . Walls Destroyed . | . . . . . . Machines Disabled . | . . . . . . Actions | -11 -10 -10 -9 -9 -8 --------- Run | Yrd Mat Min Mat Sto Mat Total 1737 | 60 69 300 854 211 243 Wait 89 | 1 . 35 50 1 2 Move 1525 | 48 66 229 753 199 230 Hop 5 | . . . 2 3 . Pick Up 14 | 4 1 5 3 1 . Fast Attach 17 | 5 . 2 6 1 3 Attach 9 | 1 . . 6 . 2 Detach 5 | . . 3 2 . . Swap 13 | 1 1 5 3 2 1 Drop 8 | . . 4 2 2 . Fire 46 | . . 17 22 2 5 Melee 6 | . 1 . 5 . . Ram . | . . . . . . Kick . | . . . . . . Crush . | . . . . . . Escape Stasis . | . . . . . . Rewire . | . . . . . . Trap . | . . . . . . Miscellaneous . | . . . . . . Route ------- -11/Scrapyard -10/Materials -10/Mines -9/Materials -9/Storage -8/Materials History --------- Turn | Location | Event 11 | -11/Scrapyard | Discovered new exit (range 15) 61 | -11/Scrapyard | Entered Materials 108 | -10/Materials | Discovered new exit (range 5) 146 | -10/Materials | Entered Mines 156 | -10/Mines | Found the Drone Emporium 162 | -10/Mines | Found Prototype Device 162 | -10/Mines | Identified Sensor Drone Bay 308 | -10/Mines | Identified exit to Materials 326 | -10/Mines | Build established: Mutant 367 | -10/Mines | YI-UF0 nonchalantly dropped a Grenade Launcher on the ground 534 | -10/Mines | Entered Materials 534 | -9/Materials | Evolved 2 slots: Propulsion x1, Utility x1 676 | -9/Materials | Repaired VTOL Module 889 | -9/Materials | Core integrity fell below 50% 913 | -9/Materials | Destroyed 8 combat bots 921 | -9/Materials | Lost 5 parts (1p3n1w) 1353 | -9/Materials | Discovered new exit (range 7) 1375 | -9/Materials | Entered Storage 1493 | -9/Storage | Core integrity fell below 20% 1507 | -9/Storage | Discovered new exit (range 10) 1512 | -9/Storage | Entered Materials 1512 | -8/Materials | Evolved 2 slots: Propulsion x1, Utility x1 1538 | -8/Materials | Lost 5 parts (1p3n1w) 1686 | -8/Materials | Self-destructed Last Messages --------------- 01630_ K-01 Serf collects debris. 01633_ Slug penetrates Wall. 01634_ K-01 Serf collects debris. 01635_ U-05 Engineer lays Concrete. 01635_ K-01 Serf collects debris. 01636_ T-07 Excavator is excavating. 01636_ K-01 Serf collects debris. 01639_ O-16 Technician: "IFF HANDSHAKE FAILED. SECURING TERMINAL." 01642_ O-16 Technician uses terminal to summon reinforcements. 01642_ ALERT: Hostiles spotted, dispatching reinforcements to Terminal M002. 01642_ O-16 Technician locks terminal. 01649_ Imp. EM Shotgun destroyed. 01652_ Acquired 6 matter. 01671_ O-16 Technician: "IFF HANDSHAKE FAILED. SECURING TERMINAL." 01683_ ALERT: Hostiles spotted, dispatching reinforcements to Terminal M004. Map ----- +----------------------------------------------------+ | ??????????????######+##################??????????? | | ????????????????# #??????????? | | ????????????????# #??????????? | | ????????????????# #??????????? | | ????????????????######+############ #??????????? | | ???????????????????? ?????????# #??????????? | | ?????????????????? ???????# #??????##### | | ????????????????# #?????# #######" "" | | ????????????????# [ """"" #?????# " " | | ????????????????# """"" #?????# | | ????????????????# """"" #?????# | | ????????????????# #?????####### | | ????????????????#############???????????# | | ????????????????????????????????????????## | | ?????????????????????????????????????????# | | ?????????????????????????????????????????#! | | ????????????????????????????????########## | | ??????????????????????????###???# # | | ????????????????????####### ###?# """# | | ????????????######### ] Y #?# """# | | ????????????# # ! #?# """# | | ????????????# # #?# + | | ????????????# # s [[ #?# """# | | ????????????# + """s[[ #?# """# | | ????????????# # "R [[ #?# """# | | ????????????# # """@ #?# ######## | | ????????????# = # [#?##########??????# | | ????????????### #############?????????????????# | | ??????????????# #????????????????????######???# | | ??????????????# #??????????? ????????# "T" ??# | | ??????????????# #??????????? ????????# ??# | | ??????????????# #??????????? ""??????# ?# | | ??????????????# #???????? ?? ""??????# ?# | | ???###+###???## ##??????? ??????#!** !# | | ???# #???# #??????# "" ??????#!** # | | ???# ##### #??????? S"" ??????#!* / | | ???# #??????? "" ??????# # | | ???# ] ##### #????????? ??????# ! # | | ???# #???# #????????###/###????##### #### | | ???## ##???#######????????# ############## | | ?#### #########???????????# | | ##! # #???????????# | | #! + #???????????# ! | | #! # #???????????# ############## | | #! #########?????#########+###????????????### | | #! #?????????????# #????????????????? | | ##! #?????????????# #????????????????? | | ?#### #?????????????# #????????????????? | | ????# #?????????????# #????????????????? | | ????# /?????????????# """ """ #????????????????? | +----------------------------------------------------+ Best States ------------- Heat Dissipation 31 Energy Generation 12 Energy Capacity 265 Matter Stores 191 Matter Capacity 300 Sight Range 16 Terrain Scan Density 10 Utility Shielding 33 Evasion (%) 63 Recoil Reduction 2 Item Schematics ----------------- None Robot Schematics ------------------ None Fabricated ------------ Nothing Alien Tech Used ----------------- None Achievements -------------- Release The Drones! Challenges ------------ None Game ------ Seed ProtonCommImmobilizer Manual? 0 Play Time 00:23:21 Cumulative 17.3 hours Start 2024.03.24 @ 14:54:21 End 2024.03.24 @ 18:58:07 Sessions 3 Manual Loads 0 Difficulty Rogue Special Mode None Game No. 51 Rogue 51 Adventurer 0 Explorer 0 Win Type - Total 0 Types 0/0/0/0/0/0/0/0/0 Lore% 14 Gallery% 23 Achievement% 19 Wizard Run 0 Options --------- Layout 1 ASCII 0 Keyboard 1 Movement Numpad Keybinds 0 Fullscreen 2 Font 24/Terminus Map View 50x35 Zoom Use 1% Tactical HUD 1 Map Filters NONE Filters NONE Steam 1 RUN: 74b932a0-69ed-4c25-8c50-9172b1f813a0